{"text_format":"3","workbook":"xlsx","n_sheets":2,"sheets":["Matriz de Contribuição","Instruções"],"not_rendered":{"images":1},"read":"whole","date_system":"1900"}

{"sheet":"Matriz de Contribuição","index":0,"n_rows":27,"n_cols":8,"rows_kept":27,"merged":[[1,0,1,7],[2,0,2,7]]}
[]
["MATRIZ DE CONTRIBUIÇÃO DE INVENTORES"]
["Projeto: ________________________     Data: ________________________"]
[]
["Etapa de Contribuição","Inventor 1","Inventor 2","Inventor 3","Inventor 4","Inventor 5","Inventor 6","Total (%)"]
["CONCEPÇÃO E DESIGN"]
["   • Idealização da arquitetura/formulação"]
["   • Definição da solução técnica"]
["   Subtotal Concepção (%)",{"$f":"IFERROR(AVERAGE(B6:B7),0)","v":0},0,0,0,0,0,{"$f":"IFERROR(SUM(B9:G9),0)","v":0}]
[]
["RESOLUÇÃO DE PROBLEMAS CRÍTICOS"]
["   • Desenvolvimento de soluções inovadoras"]
["   • Superação de obstáculos técnicos"]
["   Subtotal Resolução Crítica (%)",{"$f":"IFERROR(AVERAGE(B12:B13),0)","v":0},0,0,0,0,0,{"$f":"IFERROR(SUM(B14:G14),0)","v":0}]
[]
["REDAÇÃO TÉCNICA"]
["   • Elaboração de reivindicações"]
["   • Redação do relatório descritivo"]
["   Subtotal Redação (%)",{"$f":"IFERROR(AVERAGE(B17:B18),0)","v":0},0,0,0,0,0,{"$f":"IFERROR(SUM(B19:G19),0)","v":0}]
[]
["TOTAL GERAL DE CONTRIBUIÇÃO (%)",{"$f":"IFERROR(AVERAGE(B9,B14,B19),0)","v":0},0,0,0,0,0,{"$f":"IFERROR(SUM(B21:G21),0)","v":0}]
[]
[]
["Assinaturas"]
["Inventor 1"]
["Inventor 2"]
["Inventor 3"]

{"sheet":"Instruções","index":1,"n_rows":40,"n_cols":1,"rows_kept":40}
["GUIA DE PREENCHIMENTO - MATRIZ DE CONTRIBUIÇÃO DE INVENTORES"]
[]
["1. IDENTIFICAÇÃO"]
["   • Preencha o nome do projeto e a data de preenchimento"]
[]
["2. NOMES DOS INVENTORES"]
["   • Substitua 'Inventor 1', 'Inventor 2', etc. pelos nomes reais dos participantes"]
["   • Máximo de 6 inventores por planilha (adicione abas adicionais se necessário)"]
[]
["3. PREENCHIMENTO DE PERCENTUAIS"]
["   • Para cada linha de atividade, indique o percentual de esforço intelectual (0-100%)"]
["   • Cada pessoa avalia seu próprio esforço e/ou a equipe define conjuntamente"]
["   • O valor representa a intensidade intelectual, não apenas horas trabalhadas"]
[]
["4. ETAPAS DE CONTRIBUIÇÃO"]
["   CONCEPÇÃO E DESIGN"]
["   • Idealização: Quem teve a ideia original?"]
["   • Definição da solução: Quem definiu como resolver o problema?"]
[]
["   RESOLUÇÃO DE PROBLEMAS CRÍTICOS"]
["   • Desenvolvimento de soluções inovadoras: Quem criou/adaptou métodos?"]
["   • Superação de obstáculos: Quem resolveu os principais gargalos?"]
[]
["   REDAÇÃO TÉCNICA"]
["   • Elaboração de reivindicações: Quem estruturou as claims da patente?"]
["   • Relatório descritivo: Quem documentou a tecnologia?"]
[]
["5. CÁLCULOS AUTOMÁTICOS"]
["   • Subtotais por etapa: Média dos percentuais de cada atividade"]
["   • Total Geral: Média aritmética dos três subtotais"]
["   • Soma final (coluna Total): Verificação de consistência entre inventores"]
[]
["6. CRITÉRIOS JURÍDICOS IMPORTANTES"]
["   • INCLUA: Concepção inventiva, modificações cruciais, atividades qualificadas"]
["   • EXCLUA: Pessoas que apenas seguiram ordens, coletaram dados, financiaram ou cederam espaço"]
[]
["7. DOCUMENTAÇÃO"]
["   • Mantenha esta matriz assinada e datada"]
["   • Anexe ao formulário de proteção de invenção do ITA"]
["   • Registre em caderno de laboratório digital ou assinado por testemunha"]